Cogmind - Beta 12 @@@ ROGUE MODE // 2023.04.05 @ 23:49:50 Player: Infomantis Result: Destroyed by H-55 Commando with Assault Rifle Performance ------------- Evolutions (2) 1000 Regions Visited (7) 1400 Robots Destroyed (70) 350 Value Destroyed (3078) 3078 Prototype IDs (24) 480 Alien Tech Used (0) 0 Bonus (881) 881 TOTAL SCORE: 7189 Bonus ------- High Alert Combat Kills 178 Follower Combat Kills 42 Entered Garrisons 200 Used RIF Installer 500 Friendly Fire -39 Cogmind --------- Core Integrity 0/550 Matter 300/300 Energy 82/100 System Corruption 1% Temperature Cool (0) Movement Core (50) Location -8/Materials Parts ------- > --- POWER (1) -------- (None) > --- PROPULSION (3) --- (None) > --- UTILITY (5) ------ Improved Heat Sink Relay Coupler [Grunt] (3) > --- WEAPON (2) ------- (None) > --- INVENTORY (5) ---- Neutrino Core Relay Coupler [NC] (25) Relay Coupler [Sentry] (22) Relay Coupler [Heavy] (12) Missile Launcher Peak State ------------ > --- POWER ------------ Improved Deuterium Engine > --- PROPULSION ------- Aluminum Leg Aluminum Leg Carbon-fiber Leg > --- UTILITY ---------- Improved Heat Sink High-capacity Storage Unit Targeting Computer Hacking Suite PSU Rigger > --- WEAPON ----------- Heavy Particle Gun Gauss Rifle > --- INVENTORY -------- Light Nuclear Core Neutrino Core Carbon-fiber Leg Improved Heat Sink Large Storage Unit Large Matter Pod Seismic Detector Improved Weapon Shielding Advanced System Shield Relay Coupler [NC] Relay Coupler [Sentry] Relay Coupler [Heavy] Improved Dynamic Insulation System Improved Field Recycling Unit Wave Gun Mass Driver Rocket Launcher Rocket Launcher Improved Plasma Cutter Makeshift Sword [Rating: 40] Favorites ----------- Power Light Ion Engine Engine Light Ion Engine Power Core Micro Nuclear Core Propulsion Light Treads Treads Light Treads Leg Carbon-fiber Leg Wheel Wheel Utility Seismic Detector Device Seismic Detector Storage Medium Storage Unit Processor Targeting Computer Hackware Hacking Suite Protection Improved Weapon Shielding Weapon Assault Rifle Energy Gun Heavy Particle Gun Ballistic Gun Assault Rifle Launcher Rocket Launcher Special Weapon Remote Datajack Slashing Weapon Makeshift Sword Special Melee Weapon Datajack Build | -11 -10 -10 -10 -9 -8 -8 -8 ------- Run | Jun Mat Min Exi Min Mat Gar Mat Slots Evolved 4 | . . . . . 4 . . Power . | . . . . . . . . Propulsion 1 | . . . . . 1 . . Utility 3 | . . . . . 3 . . Weapon . | . . . . . . . . Parts Attached 68 | 7 . 1 7 . 18 28 7 Power 6 | 1 . . 2 . 1 2 . Engine 5 | 1 . . 2 . 1 1 . Core 1 | . . . . . . 1 . Reactor . | . . . . . . . . Propulsion 15 | 2 . . 1 . 4 8 . Treads 10 | 2 . . 1 . 4 3 . Leg 4 | . . . . . . 4 . Wheel 1 | . . . . . . 1 . Hover . | . . . . . . . . Flight . | . . . . . . . . Utility 27 | 2 . 1 2 . 11 10 1 Device 11 | 1 . . . . 5 4 1 Storage 5 | 1 . 1 2 . . 1 . Processor 2 | . . . . . 1 1 . Hackware 3 | . . . . . 2 1 . Protection 6 | . . . . . 3 3 . Artifact . | . . . . . . . . Weapon 20 | 2 . . 2 . 2 8 6 Energy Gun 5 | . . . . . 2 2 1 Energy Cannon . | . . . . . . . . Ballistic Gun 9 | 2 . . 1 . . 3 3 Ballistic Cannon . | . . . . . . . . Launcher 1 | . . . . . . 1 . Special Weapon 1 | . . . . . . . 1 Impact Weapon . | . . . . . . . . Slashing Weapon 3 | . . . 1 . . 2 . Piercing Weapon . | . . . . . . . . Special Melee Weapon 1 | . . . . . . . 1 Unidentified Prototypes 1 | . . . . . 1 . . Parts Lost 21 | . . . . . 2 11 8 Power 3 | . . . . . . 2 1 Propulsion 9 | . . . . . . 6 3 Utility 7 | . . . . . 2 2 3 Weapon 2 | . . . . . . 1 1 Highest Loss Streak 7 | . . . . . 1 3 7 To Critical Strikes . | . . . . . . . . Average Slot Usage (%) 98 | . 100 100 100 100 97 95 94 Engine 10 | . 14 14 14 14 9 5 . Treads 22 | . 28 28 28 28 27 10 17 Leg 3 | . . . . . . 10 7 Wheel 1 | . . . . . . 4 . Device 14 | . 14 14 14 14 18 14 11 Storage 11 | . 14 14 14 14 9 9 9 Processor 4 | . . . . . 8 9 7 Hackware 2 | . . . . . 2 7 9 Protection 2 | . . . . . 4 5 4 Energy Gun 3 | . . . . . 8 7 9 Ballistic Gun 16 | . 28 28 20 14 9 8 8 Slashing Weapon 2 | . . . 7 14 . 2 . Naked Turns . | . . . . . . . . Heaviest Build 65 | 13 13 18 30 30 52 65 58 Greatest Support 60 | 40 40 40 40 40 60 60 40 Greatest Overweight (x) 6 | . . . . . . 6 1 Average Overweight (x) . | . . . . . . 3 . Largest Inventory Capacity 20 | 8 8 10 15 15 15 20 20 Average Capacity 13 | 7 8 9 11 15 15 19 19 Most Carried 20 | 7 8 10 15 15 15 20 20 Average Carried 13 | 4 7 8 11 15 14 18 19 Final Capacity 20 | 8 8 10 15 15 15 20 5 Final Carried 20 | 7 8 10 15 15 15 20 5 Class Distribution -------------------- 54% | Mutant 37% | Scavenger-Mutant 7% | Bothacker-Mutant Dominant Class ---------------- Mutant | -10/Materials Mutant | -10/Mines Mutant | -10/Exiles Mutant | -9/Mines Scavenger-Mutant | -8/Materials Scavenger-Mutant | -8/Garrison Bothacker-Mutant | -8/Materials Resources | -11 -10 -10 -10 -9 -8 -8 -8 ----------- Run | Jun Mat Min Exi Min Mat Gar Mat Matter Collected 1687 | 339 85 342 50 . 228 465 178 Remotely . | . . . . . . . . Salvage Created 2702 | 155 99 355 328 . 790 752 223 Parts 186 | 16 11 25 12 . 53 52 17 Haulers Intercepted . | . . . . . . . . Recyclers Shooed 5 | 1 . . . . 2 . 2 Parts Field Recycled 6 | . . . . . 6 . . Retrieved Matter 100 | . . . . . 100 . . Parts Self-Destructed . | . . . . . . . . Prevented . | . . . . . . . . Kills | -11 -10 -10 -10 -9 -8 -8 -8 ------- Run | Jun Mat Min Exi Min Mat Gar Mat Combat Hostiles Destroyed 50 | . 4 8 . . 14 18 6 Melee 4 | . . . . . . 4 . Guns 43 | . 4 8 . . 14 11 6 AOE 3 | . . . . . . 3 . Classes Destroyed 13 | 3 3 1 . . 4 2 . Worker 3 | 1 . 1 . . 1 . . Builder 2 | . . 1 . . 1 . . Tunneler 6 | 5 . . . . 1 . . Recycler 3 | 1 . 2 . . . . . Mechanic 1 | . . . . . 1 . . Operator 3 | . . . . . 2 . 1 Watcher 2 | . 1 . . . 1 . . Swarmer 14 | . 3 6 . . 2 . 3 Grunt 27 | . 1 2 . . 10 12 2 Duelist 1 | . . . . . 1 . . Sentry 2 | . . . . . 1 1 . Hunter 2 | . . . . . . 1 1 Programmer 4 | . . . . . . 4 . Best Kill Streak 10 | 4 3 3 . . 10 6 3 Combat Bots Only 7 | . 3 3 . . 7 6 3 Max Kills in Single Turn 2 | 1 1 1 . . 2 2 2 Gunslinging 1 | . . . . . 1 . . Exploded 2 | . . . . . . 2 . Melee 1 | . . . . . . 1 . Uniques/NPCs Destroyed . | . . . . . . . . Combat | -11 -10 -10 -10 -9 -8 -8 -8 -------- Run | Jun Mat Min Exi Min Mat Gar Mat Damage Taken 3597 | . 95 352 . . 619 1682 849 Core 696 | . 26 107 . . 65 303 195 Absorbed by Shields . | . . . . . . . . Redirected to Shielding 101 | . . . . . . 72 29 Core Remaining (%) 73 | 100 . . . 46 . . . Volleys Fired 172 | 12 10 36 . . 32 55 27 Largest 2 | 2 2 2 . . 2 2 2 Hottest 109 | 40 40 40 . . 97 83 109 Shots Fired 329 | 24 20 72 . . 64 96 53 Gun 323 | 24 20 72 . . 64 91 52 Cannon . | . . . . . . . . Launcher 5 | . . . . . . 5 . Special 1 | . . . . . . . 1 Kinetic 223 | 24 20 72 . . 32 49 26 Thermal 100 | . . . . . 32 42 26 Explosive 5 | . . . . . . 5 . Electromagnetic . | . . . . . . . . Robot Hit Streak 18 | 5 2 7 . . 7 18 14 Robot Miss Streak 4 | 2 2 2 . . 2 3 4 Penetration Max 1 | . . . . . 1 1 . Secondary Targets 9 | . 1 2 . . 5 . 1 Max Gunslinging Chain 1 | . 1 1 . . 1 . 1 Shots Hit Robots 231 | 15 9 46 18 . 41 66 36 Core Hits 101 | 6 5 15 6 . 26 34 9 Critical Kills 1 | . 1 . . . . . . Critical Parts Destroyed 2 | . . . . . 1 . 1 Critical Strikes 7 | . 1 . 1 . 1 1 3 Burn 2 | . . . . . . . 2 Destroy 3 | . 1 . . . 1 . 1 Sever 2 | . . . 1 . . 1 . Melee Attacks 36 | . . . 18 . . 16 2 Impact . | . . . . . . . . Slashing 34 | . . . 18 . . 16 . Piercing . | . . . . . . . . Sneak Attacks 3 | . . . . . . 3 . Combat Hostiles 3 | . . . . . . 3 . Follow-up Attacks . | . . . . . . . . Damage Inflicted 5762 | 176 108 588 1333 . 967 1818 772 Guns 3572 | 174 108 572 . . 946 1006 766 Cannons . | . . . . . . . . Explosions 428 | . . . . . . 428 . Melee 1717 | . . . 1333 . . 384 . Ramming 45 | 2 . 16 . . 21 . 6 Kinetic 2148 | 174 108 572 . . 462 498 334 Thermal 1424 | . . . . . 484 508 432 Explosive 428 | . . . . . . 428 . Electromagnetic . | . . . . . . . . Impact . | . . . . . . . . Slashing 1717 | . . . 1333 . . 384 . Piercing . | . . . . . . . . Highest Corruption 1 | . . . . . . 1 1 Average Corruption 1 | . . . . . . 1 1 Corruption Purged . | . . . . . . . . Corruption Blocked . | . . . . . . . . Effects 5 | . . . . . . 2 3 Message Errors 3 | . . . . . . . 3 Energy Discharges 2 | . . . . . . 2 . Overload Shots . | . . . . . . . . Overflow Damage 118 | . . . 79 . . 39 . Projectiles . | . . . . . . . . Explosions 7 | . . . . . . 7 . Melee 111 | . . . 79 . . 32 . Knockbacks . | . . . . . . . . Impact . | . . . . . . . . Kinetic . | . . . . . . . . Secondary . | . . . . . . . . Self-Inflicted Damage 125 | . . . . . . 122 3 Shots 3 | . . . . . . 3 . Rammed 6 | . . 3 . . 2 . 1 Targets Rammed 8 | 1 . 4 . . 2 . 1 Kicked . | . . . . . . . . Crushed 2 | 1 . 1 . . . . . Highest Temperature 306 | . . 2 . . 306 25 177 Average Temperature 79 | . . 2 . . 118 9 53 Received Heat Transfer 1425 | . 6 105 . . 369 630 315 Siege Activations . | . . . . . . . . Robots Corrupted . | . . . . . . . . Combat Hostiles . | . . . . . . . . Parts Fried . | . . . . . . . . Impact Corruptions . | . . . . . . . . Robots Melted . | . . . . . . . . Combat Hostiles . | . . . . . . . . Parts Melted 5 | . . . . . 2 1 2 Heat Transferred 2755 | . . . . . 962 979 814 Parts Sabotaged . | . . . . . . . . Parts Stolen . | . . . . . . . . Parts Stripped . | . . . . . . . . Power Chain Reactions . | . . . . . . . . Missiles Intercepted . | . . . . . . . . Alert | -11 -10 -10 -10 -9 -8 -8 -8 ------- Run | Jun Mat Min Exi Min Mat Gar Mat Peak Influence 931 | 35 145 135 . . 329 931 585 Initial 453 | . 22 56 . . . 215 453 Average 242 | 16 78 95 . . 107 468 487 Maximum Alert Level 3 | . . . . . 1 3 2 Low Security (%) 57 | 100 100 100 . 100 87 2 . Level 1 21 | . . . . . 12 55 . Level 2 17 | . . . . . . 30 100 Level 3 3 | . . . . . . 11 . Level 4 . | . . . . . . . . Level 5 . | . . . . . . . . High Security . | . . . . . . . . Max Security . | . . . . . . . . Squads Dispatched 6 | . 2 . . . 3 . 1 Investigation 3 | . 1 . . . 2 . . Extermination . | . . . . . . . . Reinforcement 2 | . 1 . . . . . 1 Assault . | . . . . . . . . Garrison 1 | . . . . . 1 . . Intercept . | . . . . . . . . Searches Triggered . | . . . . . . . . Construction Impeded . | . . . . . . . . Haulers Reinforced . | . . . . . . . . Active Scanning Responses . | . . . . . . . . Cargo Convoy Interrupts . | . . . . . . . . Stealth | -11 -10 -10 -10 -9 -8 -8 -8 --------- Run | Jun Mat Min Exi Min Mat Gar Mat Distress Signals 4 | . . . . . 2 . 2 Communications Jammed . | . . . . . . . . Distress Signals . | . . . . . . . . Times Spotted 70 | . 7 8 . . 23 17 15 Peak Tracking Total 6 | . 4 3 . . 6 5 6 Tactical Retreats 2 | . . . . . 1 1 . Traps | -11 -10 -10 -10 -9 -8 -8 -8 ------- Run | Jun Mat Min Exi Min Mat Gar Mat Traps Triggered 7 | . . . . . 1 6 . Indirectly . | . . . . . . . . Trap Hack Attempts . | . . . . . . . . Triggered . | . . . . . . . . Disarmed . | . . . . . . . . Reprogrammed . | . . . . . . . . Reused . | . . . . . . . . Traps Extracted . | . . . . . . . . Installed . | . . . . . . . . Triggered . | . . . . . . . . Power Sources Rigged 2 | . . . . . . 2 . Machines | -11 -10 -10 -10 -9 -8 -8 -8 ---------- Run | Jun Mat Min Exi Min Mat Gar Mat Machines Disabled 9 | . . 1 . . 1 6 1 Max in Single Turn 2 | . . 1 . . 1 2 1 Garrison Relay 5 | . . . . . . 5 . Machines Repaired . | . . . . . . . . Machines Sabotaged . | . . . . . . . . Overloaded Fab Kills . | . . . . . . . . Hacking | -11 -10 -10 -10 -9 -8 -8 -8 --------- Run | Jun Mat Min Exi Min Mat Gar Mat Machines Accessed 13 | . 2 . 2 . 6 3 . Terminals 9 | . 2 . . . 4 3 . Fabricators . | . . . . . . . . Repair Stations . | . . . . . . . . Recycling Units . | . . . . . . . . Scanalyzers 1 | . . . . . 1 . . Garrison Access 1 | . . . . . 1 . . Total Hacks 31 | . 5 . 3 . 16 7 . Successful 11 | . . . 3 . 6 2 . Failed 20 | . 5 . . . 10 5 . Catastrophic 3 | . 1 . . . 2 . . Database Lockouts . | . . . . . . . . Manual 15 | . 3 . 1 . 11 . . Terminals 24 | . 5 . . . 12 7 . Fabricators . | . . . . . . . . Repair Stations . | . . . . . . . . Recycling Units . | . . . . . . . . Scanalyzers 2 | . . . . . 2 . . Garrison Access 2 | . . . . . 2 . . Terminal Hacks 8 | . . . 3 . 3 2 . Record 2 | . . . 2 . . . . Robot Schematic 2 | . . . . . 2 . . Emergency Access Points 1 | . . . . . . 1 . Locate Traps 1 | . . . . . 1 . . Garrison Registry 1 | . . . . . . 1 . EX-Prototype ID Bank 1 | . . . 1 . . . . Fabricator Hacks . | . . . . . . . . Repair Station Hacks . | . . . . . . . . Recycling Unit Hacks . | . . . . . . . . Scanalyzer 2 | . . . . . 2 . . Insert Component 1 | . . . . . 1 . . Analyze 1 | . . . . . 1 . . Garrison Access Hacks 1 | . . . . . 1 . . Unlock Access 1 | . . . . . 1 . . Unauthorized Hacks . | . . . . . . . . Terminals . | . . . . . . . . Fabricators . | . . . . . . . . Repair Stations . | . . . . . . . . Recycling Units . | . . . . . . . . Scanalyzers . | . . . . . . . . Garrison Access . | . . . . . . . . Data Cores Recovered 2 | . . . . . 2 . . Used 2 | . . . . . 2 . . Hacking Detections 9 | . 2 . . . 4 3 . Full Trace Events 4 | . 1 . . . 2 1 . Feedback Events 1 | . . . . . . 1 . Hackware Fried 1 | . . . . . . 1 . Feedback Blocked . | . . . . . . . . Robot Schematics Acquired 2 | . . . . . 2 . . Robots Built . | . . . . . . . . Authchips . | . . . . . . . . Time . | . . . . . . . . Total Robot Build Rating . | . . . . . . . . Part Schematics Acquired 1 | . . . . . 1 . . Parts Built . | . . . . . . . . Authchips . | . . . . . . . . Time . | . . . . . . . . Total Part Build Rating . | . . . . . . . . Parts Repaired . | . . . . . . . . Time . | . . . . . . . . Parts Recycled . | . . . . . . . . Recycled Matter . | . . . . . . . . Retrieved Matter . | . . . . . . . . Retrieved Components . | . . . . . . . . Parts Scanalyzed 1 | . . . . . 1 . . Part Schematics Acquired 1 | . . . . . 1 . . Parts Damaged . | . . . . . . . . Bothacking | -11 -10 -10 -10 -9 -8 -8 -8 ------------ Run | Jun Mat Min Exi Min Mat Gar Mat Used RIF Installer 1 | . . . . . . 1 . Robots Hacked 3 | . . . . . . . 3 Non-combat . | . . . . . . . . Combat 3 | . . . . . . . 3 Robot Hacks Applied 3 | . . . . . . . 3 overwrite_iff 3 | . . . . . . . 3 Relay Couplers Released 21 | . . . . . . 21 . Machine Destruction 21 | . . . . . . 21 . Attached 1 | . . . . . . 1 . Fabnet Peak Effective % . | . . . . . . . . Robots Rewired 3 | . . . 3 . . . . Allies Hacked . | . . . . . . . . Hacks Repelled . | . . . . . . . . Allies | -11 -10 -10 -10 -9 -8 -8 -8 -------- Run | Jun Mat Min Exi Min Mat Gar Mat Total Allies 7 | . . . 3 1 . . 3 Largest Group 4 | . . . 3 4 4 2 1 Highest-Rated Group 68 | . . . 37 68 68 29 16 Highest-Rated Ally 31 | . . . 21 31 31 21 16 Total Orders . | . . . . . . . . Ally Attacks 85 | . . . . . 78 1 6 Total Damage 1030 | . . . . . 924 33 73 Kills 4 | . . . . . 4 . . Allies Corrupted . | . . . . . . . . Allies Melted . | . . . . . . . . Intel | -11 -10 -10 -10 -9 -8 -8 -8 ------- Run | Jun Mat Min Exi Min Mat Gar Mat Robot Analysis Total . | . . . . . . . . Derelict Logs Recovered 2 | . . 2 . . . . . Drone Launches . | . . . . . . . . Drone Recoveries . | . . . . . . . . Exploration | -11 -10 -10 -10 -9 -8 -8 -8 ------------- Run | Jun Mat Min Exi Min Mat Gar Mat Turns Passed 5128 | 243 312 924 1201 137 700 1349 262 Spaces Moved 2568 | 120 169 501 693 86 332 600 67 Core 5 | 4 . . . . . . 1 Treads 2093 | 116 169 501 693 86 332 130 66 Legs 125 | . . . . . . 125 . Wheels 345 | . . . . . . 345 . Hover . | . . . . . . . . Flight . | . . . . . . . . Fastest Speed 50 | 50 160 160 160 160 160 140 50 Average Speed 165 | 156 160 160 160 160 161 175 237 Slowest Speed 330 | 160 160 160 160 160 163 330 240 Overloaded Moves . | . . . . . . . . Propulsion Burnouts . | . . . . . . . . Robots Hopped . | . . . . . . . . Cave-ins Triggered . | . . . . . . . . Exploration Rate (%) 43 | 7 39 84 90 15 39 64 11 Regions Visited 7 Branch Regions 3 Pre-discovered Areas 1 | . . . 1 . . . . Known Exits Taken 1 | . . . . . 1 . . Unknown Exits Taken 5 | 1 1 1 1 1 . . . Scrap Searched 1 | . . 1 . . . . . Spaces Dug 1 | . . . . . . 1 . Terrain Destroyed 11 | . . . . . . 6 5 Melee . | . . . . . . . . Projectile 7 | . . . . . . 2 5 AOE 4 | . . . . . . 4 . Terrain Rammed . | . . . . . . . . Walls Destroyed . | . . . . . . . . Machines Disabled . | . . . . . . . . Actions | -11 -10 -10 -10 -9 -8 -8 -8 --------- Run | Jun Mat Min Exi Min Mat Gar Mat Total 3082 | 148 193 550 768 86 433 782 122 Wait 60 | . 6 6 1 1 24 12 10 Move 2562 | 119 168 500 692 85 332 599 67 Hop . | . . . . . . . . Pick Up 61 | 9 5 2 6 . 11 25 3 Fast Attach 16 | 5 . . . . 4 7 . Attach 15 | 2 . . . . 5 7 1 Detach 2 | . . . . . 2 . . Swap 37 | . . 1 7 . 9 14 6 Drop 44 | . 4 1 5 . 12 17 5 Fire 172 | 12 10 36 . . 32 55 27 Melee 36 | . . . 18 . . 16 2 Ram 1 | . . . . . . . 1 Kick . | . . . . . . . . Crush 7 | 1 . 4 . . 2 . . Escape Stasis 28 | . . . . . . 28 . Rewire 39 | . . . 39 . . . . Trap 2 | . . . . . . 2 . Miscellaneous . | . . . . . . . . Route ------- -11/Junkyard -10/Materials (discovered 2 exits: [*Mat] / [*Min]) -10/Mines (discovered 3 exits: [*Mat x2] / *Exi) -10/Exiles (discovered 2 exits: [*Min x2]) -9/Mines -8/Materials (discovered 3 exits: *Fac x2 / Gar) -8/Garrison (discovered 3 exits: [*Mat x3]) -8/Materials History --------- Turn | Location | Event 56 | -11/Junkyard | Discovered new exit (range 15) 244 | -11/Junkyard | Entered Materials 302 | -10/Materials | Build established: Mutant 384 | -10/Materials | Discovered new exit (range 15) 459 | -10/Materials | Discovered new exit (range 3) 556 | -10/Materials | Entered Mines 606 | -10/Mines | Deemed a non-threat by the Exiles lab entrance 608 | -10/Mines | Discovered new exit (range 5) 617 | -10/Mines | Met a Derelict bent on vengeance 816 | -10/Mines | Discovered new exit (range 15) 843 | -10/Mines | Learned location of 1 exit from Materials 914 | -10/Mines | Learned location of 1 exit from Materials 971 | -10/Mines | Received a Rocket Launcher from a helpful Derelict 990 | -10/Mines | Discovered new exit (range 14) 1191 | -10/Mines | Core integrity fell below 50% 1480 | -10/Mines | Entered Exiles 1480 | -10/Exiles | Found Exiles lab destroyed 1532 | -10/Exiles | Discovered new exit (range 14) 1771 | -10/Exiles | Opened EX-Vault 1787 | -10/Exiles | Found PSU Rigger 1888 | -10/Exiles | Learned location of Zion (-7) 2659 | -10/Exiles | Discovered new exit (range 14) 2681 | -10/Exiles | Entered Mines 2681 | -9/Mines | Accompanied by 3 allies 2684 | -9/Mines | Received a Mining Laser from a helpful Derelict 2785 | -9/Mines | Discovered new exit (range 5) 2811 | -9/Mines | Assembled infested the area 2818 | -9/Mines | Entered Materials 2818 | -8/Materials | Accompanied by 4 allies 2818 | -8/Materials | Evolved 4 slots: Propulsion x1, Utility x3 2819 | -8/Materials | Identified exit to Factory 3111 | -8/Materials | Build established: Scavenger-Mutant 3418 | -8/Materials | Garrison activated, responded to threat 3485 | -8/Materials | Destroyed 7 combat bots 3518 | -8/Materials | Identified exit to Garrison 3518 | -8/Materials | Entered Garrison 3518 | -8/Garrison | Accompanied by 2 allies 3598 | -8/Garrison | Triggered checkpoint 3601 | -8/Garrison | Lost 3 parts (2n1w) 3641 | -8/Garrison | Garrison Relay disabled 3749 | -8/Garrison | Installed Relay Interface Framework 3965 | -8/Garrison | Discovered new exit (range 14) 4002 | -8/Garrison | Triggered checkpoint 4057 | -8/Garrison | Discovered new exit (range 65) 4057 | -8/Garrison | Discovered new exit (range 93) 4057 | -8/Garrison | Discovered new exit (range 20) 4292 | -8/Garrison | Triggered checkpoint 4295 | -8/Garrison | Triggered checkpoint 4305 | -8/Garrison | Core integrity fell below 50% 4332 | -8/Garrison | Lost 3 parts (2n1u) 4458 | -8/Garrison | Hacking Suite fried by hacking feedback 4462 | -8/Garrison | Triggered checkpoint 4713 | -8/Garrison | Garrison Relay disabled 4720 | -8/Garrison | Garrison Relay disabled 4722 | -8/Garrison | Garrison Relay disabled 4722 | -8/Garrison | Garrison Relay disabled 4867 | -8/Garrison | Entered Materials 5039 | -8/Materials | Build established: Bothacker-Mutant 5116 | -8/Materials | Core integrity fell below 20% 5129 | -8/Materials | Destroyed by H-55 Commando with Assault Rifle Last Messages --------------- 05111_ Slug penetrates G-47 Trooper. 05112_ Critical hit (Burn: +37). 05112_ Lgt. Treads destroyed. 05113_ Slug penetrates G-47 Trooper. 05113_ Destroyed Imp. Heat Sink. 05116_ Lgt. Treads destroyed. 05116_ Slug penetrates G-47 Trooper. 05116_ Lgt. Nuclear Core melted. 05116_ G-47 Trooper destroyed. 05119_ Slug penetrates G-47 Trooper. 05120_ Mic. Nuclear Core destroyed. 05122_ Slug penetrates G-47 Trooper. 05124_ Gauss Rifle destroyed. 05125_ Dropped Hcp. Storage Unit. 05125_ Dropped Wave Gun. 05126_ Dropped Mass Driver. 05127_ Acquired Relay Coupler [Heavy]. 05128_ Slammed into M-13 Machinist. 05129_ Acquired 40 matter. 05129_ Penetrated by Slug. Map ----- +----------------------------------------------------+ | ????????????????####### ########????????? | | ??????????????????????# #???????????????? | | ??????????????????????# #???????????????? | | ??????????????????????# #?????####??????? | | ??????????????????????# #??? #??????? | | ??????????????????????# #??"" ""#??????? | | ??????????????????????# #??"" Y"#??????? | | ??????????????????????# #?""" ""#??????? | | ??????????????????????# #? #??????? | | ??????????????????????# #] #??????? | | ??????????????????????# # /!! #??????? | | ??????????????????????# + [!! #??????? | | ??????????????????????# # [! #??????? | | ?????????????????????## ##########??????? | | ?????????????????????# #??????????????? | | ?????????????????????# #??????????????? | | ?????????????????????# #??????????????? | | ?????????????????????# #??????????????? | | ?????????????????????## ##??????????????? | | ??????????????????????# #???????????????? | | ??????????????????????# ########????????? | | ??????????????????????# # ! #????????? | | ??????????????????????# # #????????? | | ??????????????????????# #!/!! #????????? | | ?????????????? ???????#a # !|* #????????? | | ??????##??????? ?????## m@%!!/ #????????? | | ?????? ######+????#; #gg!* #????????? | | ?????? ######h%*!!#######??????? | | ???????? """ ! =# ] #??????? | | ??????????""" "T" %=[%" """???????? | | ?????????"""" = [ " """???????? | | ?????????"""" *% " """???????? | | ??????# ![= ] # ]= #??????? | | ??????# ![ # ] ""#??????? | | ?????/ ## [[ # " "???????? | | ?????##+##???# + """???????? | | ?????????????# # #??????? | | ?????????????# #########???????? | | ?????????????# ???????????????? | | ?????????????# ] ??????????????? | | ?????????????# ##+#######?????????????? | | ?????????????##"##???????????????????????? | | ?????????????? ?????????????????????????? | | ?????????????"" ?????????????????????????? | | ??????????????"??????????????????????????? | | ?????????????????????????????????????????? | | ?????????????????????????????????????????? | | ?????????????????????????????????????????? | | | | | +----------------------------------------------------+ Best States ------------- Heat Dissipation 59 Energy Generation 16 Energy Capacity 290 Matter Stores 300 Matter Capacity 300 Sight Range 16 Terrain Scan Density 10 Armor Coverage 225 Weapon Shielding 66 Evasion (%) 40 Targeting Accuracy 5 Recoil Reduction 3 Offensive Hacking 20 Relay Coupler Types 1 Relay Coupler Value 24 Item Schematics ----------------- Hcp. Storage Unit | -8/Materials | Scanalyzed Robot Schematics ------------------ M-28 Smith | -8/Materials | Hacked H-55 Commando | -8/Materials | Hacked Fabricated ------------ Nothing Alien Tech Used ----------------- None Achievements -------------- None Challenges ------------ None Game ------ Seed SeismicDroneProtomatter Manual? 0 Play Time 00:41:03 Cumulative 341.5 hours Start 2023.04.05 @ 23:03:07 End 2023.04.05 @ 23:49:50 Sessions 1 Manual Loads 0 Difficulty Rogue Special Mode None Game No. 223 Rogue 200 Adventurer 6 Explorer 17 Win Type - Total 25 Types 17/0/4/1/0/1/1/1/0 Lore% 95 Gallery% 95 Achievement% 78 Wizard Run 0 Options --------- ASCII 0 Keyboard 0 Movement Numpad Keybinds 0 Fullscreen 1 Font 12/Fuzzy Map View 83x54 Tactical HUD 1 Map Filters NONE Filters NONE Steam 1 RUN: c998d824-120b-46b0-a6ff-ba7b9c09a02f